Cogmind - Beta 15 @@@ ROGUE MODE // 2025.09.03 @ 20:25:47 Player: k1ll3rb0t Result: Destroyed by as-53273 with Assembled Heavy Rifle Performance ------------- Evolutions (0) 0 Regions Visited (2) 400 Robots Destroyed (13) 65 Value Destroyed (243) 243 Prototype IDs (0) 0 Alien Tech Used (0) 0 Bonus (0) 0 TOTAL SCORE: 708 Bonus ------- None Cogmind --------- Core Integrity 0/250 Matter 195/300 Energy 100/100 System Corruption 6% Temperature Cool (0) Movement Rolling (135) Ox3 Location -10/Mines Parts ------- > --- POWER (1) -------- (None) > --- PROPULSION (2) --- Wheel Compact Wheel > --- UTILITY (2) ------ Huge Storage Unit Light Armor Plating > --- WEAPON (2) ------- (None) > --- INVENTORY (25) --- Light Ion Engine Light Treads Medium Storage Unit High-capacity Matter Pod (28) Peak State ------------ > --- POWER ------------ Ion Engine > --- PROPULSION ------- Light Treads Light Treads > --- UTILITY ---------- Small Storage Unit Seismic Detector > --- WEAPON ----------- Assault Rifle Assault Rifle > --- INVENTORY -------- Ion Engine Aluminum Leg Aluminum Leg Wheel Compact Wheel Improved Terrain Scanner Medium Laser Medium Laser [Rating: 8] Favorites ----------- Power Ion Engine Engine Ion Engine Propulsion Light Treads Treads Light Treads Wheel Wheel Utility Seismic Detector Device Seismic Detector Storage Medium Storage Unit Protection Light Armor Plating Weapon Assault Rifle Energy Gun Medium Laser Ballistic Gun Assault Rifle Build | -11 -10 -10 ------- Run | Yrd Mat Min Slots Evolved . | . . . Power . | . . . Propulsion . | . . . Utility . | . . . Weapon . | . . . Parts Attached 18 | 7 3 8 Power 2 | 1 . 1 Engine 2 | 1 . 1 Core . | . . . Reactor . | . . . Propulsion 5 | 2 . 3 Treads 3 | 2 . 1 Leg . | . . . Wheel 2 | . . 2 Hover . | . . . Flight . | . . . Utility 6 | 2 2 2 Device 2 | 1 1 . Storage 3 | 1 1 1 Processor . | . . . Hackware . | . . . Protection 1 | . . 1 Artifact . | . . . Weapon 5 | 2 1 2 Energy Gun 1 | 1 . . Energy Cannon . | . . . Ballistic Gun 4 | 1 1 2 Ballistic Cannon . | . . . Launcher . | . . . Special Weapon . | . . . Impact Weapon . | . . . Slashing Weapon . | . . . Piercing Weapon . | . . . Special Melee Weapon . | . . . Unidentified Prototypes . | . . . Parts Lost 9 | . . 9 Power 2 | . . 2 Propulsion 2 | . . 2 Utility 1 | . . 1 Weapon 4 | . . 4 Highest Loss Streak 5 | . . 5 To Critical Strikes . | . . . Average Backups 7 | 5 8 7 Power 1 | . 1 1 Propulsion 3 | 3 3 2 Utility 1 | . 1 2 Weapon 1 | . 1 . Tool/Special . | . . . Unused Backups 7 | . 5 2 Power 1 | . . 1 Propulsion 3 | . 3 . Utility 2 | . 1 1 Weapon 1 | . 1 . Tool/Special . | . . . Average Slot Usage (%) 97 | . 100 94 Engine 13 | . 14 12 Treads 26 | . 28 24 Device 13 | . 14 11 Storage 14 | . 14 14 Ballistic Gun 26 | . 27 25 Peak Build Rating 8 | 7 8 8 Average Rating 7 | 5 7 7 On Entrance 5 | . 7 8 Naked Turns . | . . . Heaviest Build 84 | 15 20 84 Greatest Support 40 | 40 40 40 Greatest Overweight (x) 3 | 1 . 3 Average Overweight (x) . | . . . Largest Inventory Capacity 25 | 8 10 25 Average Capacity 9 | 7 9 11 Most Carried 10 | 8 10 10 Average Carried 7 | 5 8 7 Final Capacity 25 | 8 10 25 Final Carried 10 | 7 10 4 Class Distribution -------------------- 100% | Mutant Dominant Class ---------------- Mutant | -10/Materials Mutant | -10/Mines Resources | -11 -10 -10 ----------- Run | Yrd Mat Min Matter Collected 505 | 233 255 17 Remotely . | . . . Salvage Created 425 | 44 316 65 Parts 22 | 6 16 . Haulers Intercepted 1 | . 1 . Recyclers Shooed . | . . . Parts Field Recycled . | . . . Retrieved Matter . | . . . Parts Self-Destructed . | . . . Prevented . | . . . Kills | -11 -10 -10 ------- Run | Yrd Mat Min Combat Hostiles Destroyed 15 | . 8 7 Guns 14 | . 8 6 AOE 1 | . . 1 Classes Destroyed 5 | 1 3 1 Tunneler 4 | 3 1 . Hauler 1 | . 1 . Swarmer 3 | . 3 . Grunt 5 | . 5 . Assembled 7 | . . 7 Best Kill Streak 6 | 1 3 6 Combat Bots Only 6 | . 3 6 Max Kills in Single Turn 1 | 1 1 1 Gunslinging . | . . . Exploded 1 | . . 1 Melee . | . . . Uniques/NPCs Destroyed . | . . . Combat | -11 -10 -10 -------- Run | Yrd Mat Min Hostile Shots Fired 96 | . 27 69 Missed 21 | . 3 18 Hits 75 | . 24 51 Melee 8 | . . 8 Projectile 67 | . 24 43 AOE 9 | . . 9 Critical Strikes 1 | . . 1 Damage Taken 1405 | . 296 1109 Core 264 | . 70 194 Absorbed by Shields . | . . . Core Remaining (%) 100 | 100 . . Volleys Fired 66 | 7 24 35 Largest 2 | 2 2 2 Hottest 70 | 70 40 40 Shots Fired 125 | 14 48 63 Gun 125 | 14 48 63 Cannon . | . . . Launcher . | . . . Special . | . . . Kinetic 118 | 7 48 63 Thermal 7 | 7 . . Explosive . | . . . Electromagnetic . | . . . Robot Hit Streak 8 | 5 8 7 Robot Miss Streak 3 | 2 2 3 Penetration Max . | . . . Secondary Targets 1 | . . 1 Max Gunslinging Chain 1 | . . 1 Shots Hit Robots 76 | 10 33 33 Core Hits 34 | 3 17 14 Critical Kills . | . . . Critical Parts Destroyed . | . . . Critical Strikes . | . . . Melee Attacks . | . . . Impact . | . . . Slashing . | . . . Piercing . | . . . Sneak Attacks . | . . . Combat Hostiles . | . . . Follow-up Attacks . | . . . Damage Inflicted 852 | 146 437 269 Guns 844 | 146 434 264 Cannons . | . . . Explosions . | . . . Melee . | . . . Ramming 8 | . 3 5 Kinetic 794 | 96 434 264 Thermal 50 | 50 . . Explosive . | . . . Electromagnetic . | . . . Impact . | . . . Slashing . | . . . Piercing . | . . . Highest Corruption 6 | . . 6 Average Corruption 6 | . . 6 Corruption Purged . | . . . Corruption Blocked . | . . . Effects 4 | . . 4 Heat Flow Errors 1 | . . 1 Data Loss (minor) 1 | . . 1 Weapon Failures 2 | . . 2 Overload Shots . | . . . Overflow Damage . | . . . Projectiles . | . . . Explosions . | . . . Melee . | . . . Knockbacks . | . . . Impact . | . . . Kinetic . | . . . Secondary . | . . . Self-Inflicted Damage . | . . . Shots . | . . . Rammed 2 | . 1 1 Targets Rammed 2 | . 1 1 Kicked . | . . . Crushed . | . . . Highest Temperature 177 | 27 5 177 Average Temperature 50 | 11 2 102 Received Heat Transfer 126 | . 126 . Siege Activations . | . . . Martial Activations . | . . . Shielding Activations . | . . . Robots Disrupted . | . . . Combat Hostiles . | . . . Robots Corrupted . | . . . Combat Hostiles . | . . . Parts Fried . | . . . Impact Corruptions . | . . . Robots Melted . | . . . Combat Hostiles . | . . . Parts Melted . | . . . Heat Transferred 148 | 148 . . Parts Sabotaged . | . . . Parts Stolen . | . . . Parts Stripped . | . . . Power Chain Reactions . | . . . Alert | -11 -10 -10 ------- Run | Yrd Mat Min Maximum Alert Level . | . . . Low Security (%) 100 | 100 100 100 Level 1 . | . . . Level 2 . | . . . Level 3 . | . . . Level 4 . | . . . Level 5 . | . . . High Security . | . . . Max Security . | . . . Peak Influence 85 | 5 85 16 Initial 16 | . . 16 Average 13 | . 25 1 Influence Increases 275 | 15 260 . Destroy 0b10 Robot/C 160 | . 160 . Destroy 0b10 Robot/NC 25 | 15 10 . Destroy Leader 32 | . 32 . Successful Hack 12 | . 12 . Destroy Structure 1 | . 1 . Lose Combat Pursuer 45 | . 45 . Influence Decreases 275 | 15 218 42 Entered New Map 26 | . . 26 Time Decay 249 | 15 218 16 Squads Dispatched 1 | . 1 . Investigation 1 | . 1 . Extermination . | . . . Reinforcement . | . . . Assault . | . . . Garrison . | . . . Intercept . | . . . Searches Triggered . | . . . Construction Impeded . | . . . Haulers Reinforced . | . . . Active Scanning Responses . | . . . Cargo Convoy Interrupts . | . . . Stealth | -11 -10 -10 --------- Run | Yrd Mat Min Distress Signals 1 | . 1 . Communications Jammed . | . . . Distress Signals . | . . . Times Spotted 34 | . 16 18 Peak Tracking Total 5 | . 4 5 Tactical Retreats 3 | . 3 . Traps | -11 -10 -10 ------- Run | Yrd Mat Min Traps Triggered 2 | . 2 . Indirectly . | . . . Trap Hack Attempts . | . . . Triggered . | . . . Disarmed . | . . . Reprogrammed . | . . . Reused . | . . . Traps Extracted . | . . . Installed . | . . . Triggered . | . . . Machines | -11 -10 -10 ---------- Run | Yrd Mat Min Machines Disabled . | . . . Max in Single Turn . | . . . Machines Repaired . | . . . Machines Dismantled . | . . . Machines Sabotaged . | . . . Overloaded Fab Kills . | . . . Hacking | -11 -10 -10 --------- Run | Yrd Mat Min Machines Accessed 5 | . 5 . Terminals 5 | . 5 . Fabricators . | . . . Repair Stations . | . . . Recycling Units . | . . . Scanalyzers . | . . . Garrison Access . | . . . Total Hacks 14 | . 14 . Successful 5 | . 5 . Failed 9 | . 9 . Catastrophic 2 | . 2 . Database Lockouts . | . . . Manual 8 | . 8 . Terminals 14 | . 14 . Fabricators . | . . . Repair Stations . | . . . Recycling Units . | . . . Scanalyzers . | . . . Garrison Access . | . . . Terminal Hacks 5 | . 5 . Part Schematic 1 | . 1 . Terminal Index 1 | . 1 . Locate Traps 2 | . 2 . Hauler Manifests 1 | . 1 . Fabricator Hacks . | . . . Repair Station Hacks . | . . . Recycling Unit Hacks . | . . . Scanalyzer . | . . . Garrison Access Hacks . | . . . Unauthorized Hacks . | . . . Terminals . | . . . Fabricators . | . . . Repair Stations . | . . . Recycling Units . | . . . Scanalyzers . | . . . Garrison Access . | . . . Data Cores Recovered . | . . . Used . | . . . Hacking Detections 5 | . 5 . Full Trace Events 1 | . 1 . Feedback Events . | . . . Feedback Blocked . | . . . Robot Schematics Acquired . | . . . Robots Built . | . . . Authchips . | . . . Time . | . . . Total Robot Build Rating . | . . . Part Schematics Acquired 1 | . 1 . Parts Built . | . . . Authchips . | . . . Time . | . . . Total Part Build Rating . | . . . Parts Repaired . | . . . Time . | . . . Parts Recycled . | . . . Recycled Matter . | . . . Retrieved Matter . | . . . Retrieved Components . | . . . Parts Scanalyzed . | . . . Part Schematics Acquired . | . . . Parts Damaged . | . . . Bothacking | -11 -10 -10 ------------ Run | Yrd Mat Min Used RIF Installer . | . . . Robots Hacked . | . . . Non-combat . | . . . Combat . | . . . Robot Hacks Applied . | . . . Relay Couplers Released . | . . . Fabnet Peak Effective % . | . . . Robots Rewired . | . . . Allies Hacked . | . . . Hacks Repelled . | . . . Allies | -11 -10 -10 -------- Run | Yrd Mat Min Total Allies . | . . . Largest Group . | . . . Highest-Rated Group . | . . . Highest-Rated Ally . | . . . Total Orders . | . . . Ally Attacks . | . . . Total Damage . | . . . Kills . | . . . Allies Corrupted . | . . . Allies Melted . | . . . Intel | -11 -10 -10 ------- Run | Yrd Mat Min Active Infowar (turns) 989 | 17 665 307 Seismic 989 | 17 665 307 Robot Analysis Total . | . . . Derelict Logs Recovered 1 | . . 1 Drone Launches . | . . . Drone Recoveries . | . . . Exploration | -11 -10 -10 ------------- Run | Yrd Mat Min Turns Passed 1299 | 262 665 372 Spaces Moved 639 | 145 322 172 Core 14 | 14 . . Treads 608 | 131 322 155 Legs . | . . . Wheels 17 | . . 17 Hover . | . . . Flight . | . . . Fastest Speed 50 | 50 160 135 Average Speed 157 | 151 160 157 Slowest Speed 160 | 160 160 160 Overloaded Moves . | . . . Propulsion Burnouts . | . . . Robots Hopped . | . . . Potential Cave-ins . | . . . Cave-ins Triggered . | . . . Exploration Rate (%) 32 | 6 51 41 Regions Visited 2 Branch Regions 1 Pre-discovered Areas . | . . . Known Exits Taken . | . . . Unknown Exits Taken 2 | 1 1 . Scrap Searched . | . . . Spaces Dug . | . . . Terrain Destroyed . | . . . Melee . | . . . Projectile . | . . . AOE . | . . . Terrain Rammed . | . . . Walls Destroyed . | . . . Machines Disabled . | . . . Actions | -11 -10 -10 --------- Run | Yrd Mat Min Total 817 | 171 428 218 Wait 63 | 3 60 . Move 637 | 144 321 172 Hop . | . . . Pick Up 19 | 10 9 . Fast Attach 5 | 4 1 . Attach 9 | 3 . 6 Detach 1 | . 1 . Swap 6 | . 2 4 Drop 9 | . 9 . Fire 66 | 7 24 35 Melee . | . . . Ram . | . . . Kick . | . . . Crush 2 | . 1 1 Escape Stasis . | . . . Rewire . | . . . Trap . | . . . Miscellaneous . | . . . Route ------- -11/Scrapyard -10/Materials (discovered 2 exits: [*Mat] / [*Min]) -10/Mines History --------- Turn | Location | Event 14 | -11/Scrapyard | Discovered new exit (range 15) 263 | -11/Scrapyard | Entered Materials 315 | -10/Materials | Build established: Mutant 403 | -10/Materials | Discovered new exit (range 16) 838 | -10/Materials | Discovered new exit (range 13) 863 | -10/Materials | Derelicts attacked the area 928 | -10/Materials | Entered Mines 938 | -10/Mines | Learned Materials trap positions 1027 | -10/Mines | Assembled infested the area 1032 | -10/Mines | Assisted by a Guerilla fighting off Assembled 1138 | -10/Mines | Lost 4 parts (1p1n2w) 1190 | -10/Mines | Core integrity fell below 50% 1271 | -10/Mines | Core integrity fell below 20% 1300 | -10/Mines | Destroyed by as-53273 with Assembled Heavy Rifle Last Messages --------------- 01235_ Knocked back. 01236_ K-01 Serf collects debris. 01245_ System corrupted: Heat flow error (+177). 01248_ K-01 Serf collects debris. 01248_ System corrupted: Lgt. Assault Rifle jammed. 01252_ K-01 Serf collects debris. 01259_ Destroyed Asb. Hover Unit. 01260_ The unstable cave ceiling collapses. 01260_ K-01 Serf collects debris. 01260_ Ion Engine destroyed. 01262_ as-58342 destroyed. 01262_ Lgt. Assault Rifle destroyed. 01264_ K-01 Serf collects debris. 01268_ System corrupted: Lgt. Assault Rifle jammed. 01280_ Lgt. Assault Rifle destroyed. 01286_ System corrupted: Component data lost. 01290_ T-07 Excavator destroyed. [Achievement: Back For More] Map ----- +----------------------------------------------------+ | | | ?????????????????????????????????????????????????? | | ?????????????????????????????????????????????????? | | ???????????????????????????????????????????####??? | | ??????????????????????????????????????????## ##?? | | ?????????????????????????????????????????## ### | | ????????????????????????????????????????## | | ???????????????????????????????????????## | | ??????????????????????????????????????## ## | | ?????????????????????????????????????## ##? | | ??????????????###????????????????????# ###?? | | ?????????#???? #????????????????????# ##???? | | ?????????# ???# #????????????????????## #????? | | ????????## ?## #?????????????????????## ##???? | | ???????## ## ##?????????????????????## ##??? | | ???????# #??????????????????????## ##?? | | ?????????? ###?????????????????????## #?? | | ?????????????# ##???????????????????## #?? | | ?????????????## #??######??????????# #?? | | ????????####??# #### # ##?????????# #?? | | ????????# #?## # ########### #?? | | ???????# ## % =%! ## | | ??????## ^ = | | ??????# ## ! % ###### # | | ??????# ## # % #### !%= ##???##### % | | ??????# ^ " %##?## @ # #???????## | | ??????# " " #?### #???????????## | | ??????# " %% "#?## % ###????????????# # | | ??????# % "### # # #????????????# #?# | | ???????#""% ## ##a## #######???????# #?? | | ???????## = ???? #?? | | ????????# % ??? #?? | | ????????## *## # ###########????## #?? | | ###?????## ## ##????????????????# ##?? | | ???## # ###??????????????????###??? | | #### ###?????????????????????????? | | ##???????????????????????????? | | # #????????????????????????????? | | ? ### ### ##????????????????????????????? | | ????## ##?####?????????????????????????????? | | ??????## #???????????????????????????????????? | | ???????# #???????????????????????????????????? | | ???????# ##???????????????????????????????????? | | ???????# ##????????????????????????????????????? | | ??????## ##?????????????????????????????????????? | | ??????# #??????????????????????????????????????? | | ???#### #??????????????????????????????????????? | | ???# #??????????????????????????????????????? | | ???# ##??????????????????????????????????????? | | ???# ####???????????????????????????????????????? | +----------------------------------------------------+ Best States ------------- Heat Dissipation 25 Energy Generation 10 Energy Capacity 250 Matter Stores 300 Matter Capacity 300 Sight Range 16 Terrain Scan Density 10 Armor Coverage 150 Evasion (%) 50 Recoil Reduction 2 Item Schematics ----------------- Huge Storage Unit | -10/Materials | Hacked Robot Schematics ------------------ None Fabricated ------------ Nothing Repaired ---------- Nothing Alien Tech Used ----------------- None Achievements -------------- Back For More Challenges ------------ None Game ------ Seed GravitonTerrorNeutralizer Manual? 0 Play Time 00:16:42 Cumulative 136.0 hours Start 2025.09.03 @ 20:08:36 End 2025.09.03 @ 20:25:47 Sessions 1 Manual Loads 0 Difficulty Rogue Special Mode None Game No. 50 Rogue 50 Adventurer 0 Explorer 0 Win Type - Total 2 Types 2/0/0/0/0/0/0/0/0/0 Lore% 52 Gallery% 55 Achievement% 48 Wizard Run 0 Options --------- Layout 1 ASCII 0 Keyboard 0 Movement Mouse Keybinds 0 Fullscreen 1 Font 32/SmallcapsGlow Map View 50x35 Zoom Use 0% Tactical HUD 1 Map Filters NONE Filters NONE Steam 1 RUN: e62ed0b2-8698-4120-93ef-8d6deaeb7e65